[Event "Late-Titled-Tuesday-Blitz-April-16-2024"]
[Site "Chess.com"]
[Date "2024.04.16"]
[Round "8"]
[White "divudis17"]
[Black "CaspiIsrael"]
[Result "0-1"]
[WhiteElo "2571"]
[BlackElo "2722"]
[TimeControl "180+1"]
[EndTime "15:25:32 PDT"]
[Termination "CaspiIsrael won by resignation"]

1. e4 {[%clk 0:02:48.2]} 1... d5 {[%clk 0:02:59.3]} 2. exd5 {[%clk 0:02:45.3]}
2... Qxd5 {[%clk 0:03:00.2]} 3. Nc3 {[%clk 0:02:45.3]} 3... Qd6 {[%clk
0:03:00.6]} 4. d4 {[%clk 0:02:44.8]} 4... Nf6 {[%clk 0:03:01.2]} 5. Nf3 {[%clk
0:02:44.5]} 5... a6 {[%clk 0:03:01.8]} 6. Bc4 {[%clk 0:02:32.8]} 6... b5 {[%clk
0:03:00.2]} 7. Bb3 {[%clk 0:02:31.4]} 7... e6 {[%clk 0:03:00.5]} 8. O-O {[%clk
0:02:30.9]} 8... c5 {[%clk 0:03:01.1]} 9. dxc5 {[%clk 0:02:30]} 9... Qxd1 {[%clk
0:03:02]} 10. Rxd1 {[%clk 0:02:27.5]} 10... Bxc5 {[%clk 0:03:02.8]} 11. h3
{[%clk 0:02:26.9]} 11... Bb7 {[%clk 0:03:03.1]} 12. Ne5 {[%clk 0:02:23.4]} 12...
Nbd7 {[%clk 0:03:01.4]} 13. Nxd7 {[%clk 0:02:22.2]} 13... Nxd7 {[%clk
0:03:02.3]} 14. a4 {[%clk 0:02:19.3]} 14... b4 {[%clk 0:03:02.2]} 15. Ne2 {[%clk
0:02:19.2]} 15... a5 {[%clk 0:03:02.2]} 16. Bf4 {[%clk 0:02:05.2]} 16... Ke7
{[%clk 0:03:01.9]} 17. Nd4 {[%clk 0:02:03]} 17... Rhd8 {[%clk 0:02:53]} 18. Be3
{[%clk 0:01:51.4]} 18... Rac8 {[%clk 0:02:51.3]} 19. Rd2 {[%clk 0:01:49.8]}
19... Nf6 {[%clk 0:02:35]} 20. Rad1 {[%clk 0:01:45.8]} 20... Bd5 {[%clk
0:02:35.4]} 21. Bxd5 {[%clk 0:01:36.2]} 21... Nxd5 {[%clk 0:02:21.3]} 22. Nf5+
{[%clk 0:01:08]} 22... Kf6 {[%clk 0:02:08.1]} 23. Bxc5 {[%clk 0:01:05.1]} 23...
Rxc5 {[%clk 0:02:02.8]} 24. Nd4 {[%clk 0:01:05.4]} 24... Rdc8 {[%clk 0:02:01.5]}
25. g3 {[%clk 0:00:52.2]} 25... h5 {[%clk 0:02:00.9]} 26. h4 {[%clk 0:00:52]}
26... g6 {[%clk 0:01:59.8]} 27. Nb3 {[%clk 0:00:45.8]} 27... Rxc2 {[%clk
0:01:58.5]} 28. Nxa5 {[%clk 0:00:44.8]} 28... Rxd2 {[%clk 0:01:57.3]} 29. Rxd2
{[%clk 0:00:44.4]} 29... Ra8 {[%clk 0:01:57.9]} 30. Nc4 {[%clk 0:00:34.7]} 30...
Rxa4 {[%clk 0:01:57.4]} 31. Nd6 {[%clk 0:00:35.4]} 31... Ra6 {[%clk 0:01:54.4]}
32. Ne4+ {[%clk 0:00:34.9]} 32... Ke7 {[%clk 0:01:52.5]} 33. Kf1 {[%clk
0:00:30]} 33... Rc6 {[%clk 0:01:49]} 34. Ke2 {[%clk 0:00:29.6]} 34... Rc4 {[%clk
0:01:47.7]} 35. Ng5 {[%clk 0:00:26.6]} 35... f6 {[%clk 0:01:44.4]} 36. Nf3
{[%clk 0:00:26.3]} 36... Rc1 {[%clk 0:01:35.3]} 37. Nd4 {[%clk 0:00:25.6]} 37...
Kd6 {[%clk 0:01:25.9]} 38. Nb3 {[%clk 0:00:21.6]} 38... Rb1 {[%clk 0:01:24.1]}
39. Kd3 {[%clk 0:00:19.5]} 39... g5 {[%clk 0:01:20.7]} 40. hxg5 {[%clk
0:00:17.7]} 40... fxg5 {[%clk 0:01:21]} 41. Kc4 {[%clk 0:00:16.3]} 41... h4
{[%clk 0:01:17.2]} 42. gxh4 {[%clk 0:00:17.2]} 42... gxh4 {[%clk 0:01:17.7]} 43.
Nd4 {[%clk 0:00:17.9]} 43... h3 {[%clk 0:01:14.5]} 44. Nf3 {[%clk 0:00:18.3]}
44... Rf1 {[%clk 0:01:06.7]} 45. Kb3 {[%clk 0:00:16.9]} 45... Ke7 {[%clk
0:01:03.3]} 46. Nh2 {[%clk 0:00:03.9]} 46... Rh1 {[%clk 0:00:59]} 47. Ng4 {[%clk
0:00:04.5]} 47... Rg1 {[%clk 0:00:58.2]} 48. Nh2 {[%clk 0:00:04.1]} 48... Rg2
{[%clk 0:00:58.5]} 49. Nf3 {[%clk 0:00:03.8]} 49... Kf6 {[%clk 0:00:54.9]} 50.
Rd1 {[%clk 0:00:01.9]} 50... Rxf2 {[%clk 0:00:54.6]} 51. Nd4 {[%clk 0:00:02.5]}
51... h2 {[%clk 0:00:52.9]} 52. Rh1 {[%clk 0:00:02.3]} 52... Ke5 {[%clk
0:00:47.3]} 53. Nc2 {[%clk 0:00:02.8]} 53... Kf4 {[%clk 0:00:45.3]} 54. Ne1
{[%clk 0:00:03]} 54... Kg3 {[%clk 0:00:44.5]} 55. Nd3 {[%clk 0:00:03.7]} 55...
Rf3 {[%clk 0:00:44.2]} 56. Kc4 {[%clk 0:00:01.4]} 56... Rxd3 {[%clk 0:00:43.7]}
57. Kxd3 {[%clk 0:00:01.5]} 57... Kg2 {[%clk 0:00:43.6]} 58. Re1 {[%clk
0:00:02]} 58... h1=Q {[%clk 0:00:40.5]} 59. Rxh1 {[%clk 0:00:02.9]} 59... Kxh1
{[%clk 0:00:40.8]} 60. Kd4 {[%clk 0:00:03.8]} 60... Kg2 {[%clk 0:00:40.3]} 61.
Ke5 {[%clk 0:00:04.3]} 61... Nc7 {[%clk 0:00:40.5]} 62. Kd4 {[%clk 0:00:02.7]}
62... Kf3 {[%clk 0:00:39.8]} 63. Kc4 {[%clk 0:00:03.3]} 63... Nd5 {[%clk
0:00:40]} 64. Kd4 {[%clk 0:00:04]} 64... Kf4 {[%clk 0:00:40.2]} 0-1

[Event "Late-Titled-Tuesday-Blitz-April-16-2024"]
[Site "Chess.com"]
[Date "2024.04.16"]
[Round "8"]
[White "CURRUTACO59"]
[Black "MarceloPlaya"]
[Result "1-0"]
[WhiteElo "2175"]
[BlackElo "2312"]
[TimeControl "180+1"]
[EndTime "15:25:37 PDT"]
[Termination "CURRUTACO59 won on time"]

1. Nf3 {[%clk 0:03:00.9]} 1... e6 {[%clk 0:02:59.5]} 2. d4 {[%clk 0:03:01]} 2...
Nf6 {[%clk 0:02:58.6]} 3. c4 {[%clk 0:03:01.2]} 3... Bb4+ {[%clk 0:02:57.8]} 4.
Bd2 {[%clk 0:03:00.9]} 4... Bxd2+ {[%clk 0:02:57.9]} 5. Qxd2 {[%clk 0:03:01.8]}
5... O-O {[%clk 0:02:58.1]} 6. Nc3 {[%clk 0:03:00.2]} 6... d5 {[%clk 0:02:57.9]}
7. e3 {[%clk 0:02:59.2]} 7... Qe7 {[%clk 0:02:57.4]} 8. Rc1 {[%clk 0:02:55.1]}
8... Rd8 {[%clk 0:02:57]} 9. Qc2 {[%clk 0:02:54.3]} 9... Nc6 {[%clk 0:02:56]}
10. Be2 {[%clk 0:02:51.8]} 10... Bd7 {[%clk 0:02:54]} 11. O-O {[%clk 0:02:50.4]}
11... Rac8 {[%clk 0:02:53.3]} 12. Rfd1 {[%clk 0:02:49.4]} 12... Be8 {[%clk
0:02:52.7]} 13. a3 {[%clk 0:02:48.6]} 13... dxc4 {[%clk 0:02:39.8]} 14. Bxc4
{[%clk 0:02:47.9]} 14... e5 {[%clk 0:02:38]} 15. d5 {[%clk 0:02:42.7]} 15... Nb8
{[%clk 0:02:27.1]} 16. e4 {[%clk 0:02:40.9]} 16... Nbd7 {[%clk 0:02:21]} 17. b4
{[%clk 0:02:33.3]} 17... Nf8 {[%clk 0:02:19.3]} 18. Qb3 {[%clk 0:02:27.8]} 18...
Ng6 {[%clk 0:02:17.1]} 19. g3 {[%clk 0:02:26.3]} 19... h5 {[%clk 0:02:09.4]} 20.
h4 {[%clk 0:02:22.3]} 20... Bd7 {[%clk 0:02:03.7]} 21. Ng5 {[%clk 0:02:15.4]}
21... Be8 {[%clk 0:01:39]} 22. a4 {[%clk 0:02:09.9]} 22... Nh7 {[%clk
0:01:35.4]} 23. Nxh7 {[%clk 0:02:00]} 23... Kxh7 {[%clk 0:01:34.6]} 24. a5
{[%clk 0:01:57.8]} 24... Bd7 {[%clk 0:01:31.2]} 25. Be2 {[%clk 0:01:54.8]} 25...
Nxh4 {[%clk 0:01:18.9]} 26. gxh4 {[%clk 0:01:38.5]} 26... Qxh4 {[%clk
0:01:18.3]} 27. Rd3 {[%clk 0:01:24.6]} 27... g6 {[%clk 0:01:14.9]} 28. Rg3
{[%clk 0:01:20.6]} 28... f5 {[%clk 0:01:07.4]} 29. Bf1 {[%clk 0:01:04.9]} 29...
f4 {[%clk 0:01:02]} 30. Rg2 {[%clk 0:00:55.5]} 30... Bh3 {[%clk 0:00:58.8]} 31.
Rh2 {[%clk 0:00:53.2]} 31... Qg4+ {[%clk 0:00:56.5]} 32. Kh1 {[%clk 0:00:50.3]}
32... Qf3+ {[%clk 0:00:52.3]} 33. Bg2 {[%clk 0:00:49.1]} 33... Bxg2+ {[%clk
0:00:46.4]} 34. Rxg2 {[%clk 0:00:49.6]} 34... Rf8 {[%clk 0:00:28.7]} 35. Qd1
{[%clk 0:00:49.3]} 35... Qh3+ {[%clk 0:00:23.9]} 36. Rh2 {[%clk 0:00:49.2]}
36... Qd7 {[%clk 0:00:19]} 37. Rxh5+ {[%clk 0:00:46.1]} 37... Kg7 {[%clk
0:00:18.7]} 38. Rh2 {[%clk 0:00:43.9]} 38... Rh8 {[%clk 0:00:18.2]} 39. Qf3
{[%clk 0:00:41.7]} 39... Rxh2+ {[%clk 0:00:17]} 40. Kxh2 {[%clk 0:00:42]} 40...
Rh8+ {[%clk 0:00:16.5]} 41. Kg2 {[%clk 0:00:41.9]} 41... Rh4 {[%clk 0:00:16.2]}
42. Rh1 {[%clk 0:00:38.9]} 42... Rxh1 {[%clk 0:00:12.8]} 43. Kxh1 {[%clk
0:00:38.8]} 43... c6 {[%clk 0:00:12.9]} 44. Kg2 {[%clk 0:00:35.8]} 44... Qe7
{[%clk 0:00:09.9]} 45. dxc6 {[%clk 0:00:29]} 45... bxc6 {[%clk 0:00:09.5]} 46.
Qd3 {[%clk 0:00:27.2]} 46... Qxb4 {[%clk 0:00:08.7]} 47. a6 {[%clk 0:00:20.9]}
47... Qa3 {[%clk 0:00:05.6]} 48. Qd7+ {[%clk 0:00:18.6]} 48... Kh6 {[%clk
0:00:05.2]} 49. Qxc6 {[%clk 0:00:18.7]} 49... Qb3 {[%clk 0:00:02.8]} 50. Nd5
{[%clk 0:00:17.8]} 50... f3+ {[%clk 0:00:01.6]} 51. Kg3 {[%clk 0:00:17]} 51...
Qb1 {[%clk 0:00:01.4]} 52. Kxf3 {[%clk 0:00:14.8]} 1-0

[Event "Late-Titled-Tuesday-Blitz-April-16-2024"]
[Site "Chess.com"]
[Date "2024.04.16"]
[Round "8"]
[White "FuenfgegenWilly"]
[Black "ameetghasi100"]
[Result "0-1"]
[WhiteElo "2470"]
[BlackElo "2797"]
[TimeControl "180+1"]
[EndTime "15:25:42 PDT"]
[Termination "ameetghasi100 won on time"]

1. d4 {[%clk 0:03:00.9]} 1... g6 {[%clk 0:03:00.9]} 2. e4 {[%clk 0:03:00.9]}
2... Nf6 {[%clk 0:03:01.8]} 3. e5 {[%clk 0:02:58.6]} 3... Ng8 {[%clk 0:03:02]}
4. Nf3 {[%clk 0:02:54.9]} 4... d6 {[%clk 0:03:02.9]} 5. exd6 {[%clk 0:02:55.1]}
5... cxd6 {[%clk 0:03:03.3]} 6. h3 {[%clk 0:02:52.8]} 6... Nf6 {[%clk
0:03:03.6]} 7. Bd3 {[%clk 0:02:45.5]} 7... Bg7 {[%clk 0:03:03.9]} 8. O-O {[%clk
0:02:44.9]} 8... O-O {[%clk 0:03:04.8]} 9. c3 {[%clk 0:02:44.2]} 9... Nc6 {[%clk
0:03:05.3]} 10. Bg5 {[%clk 0:02:44.2]} 10... b6 {[%clk 0:03:04.9]} 11. Nbd2
{[%clk 0:02:43.7]} 11... Bb7 {[%clk 0:03:05.3]} 12. Re1 {[%clk 0:02:43.6]} 12...
a6 {[%clk 0:03:05.3]} 13. a4 {[%clk 0:02:42.8]} 13... Nd5 {[%clk 0:03:00.9]} 14.
Bc4 {[%clk 0:02:38.1]} 14... Nf6 {[%clk 0:02:56.6]} 15. Ba2 {[%clk 0:02:27.8]}
15... Qc7 {[%clk 0:02:54.5]} 16. Nf1 {[%clk 0:02:10]} 16... Na5 {[%clk
0:02:51.8]} 17. Ne3 {[%clk 0:02:09.3]} 17... e6 {[%clk 0:02:50]} 18. Bxf6 {[%clk
0:01:49.2]} 18... Bxf6 {[%clk 0:02:49.8]} 19. Ng4 {[%clk 0:01:49.9]} 19... Bg7
{[%clk 0:02:49.7]} 20. Qe2 {[%clk 0:01:47.8]} 20... Rfe8 {[%clk 0:02:49.1]} 21.
Ng5 {[%clk 0:01:47.4]} 21... h6 {[%clk 0:02:45]} 22. Nf3 {[%clk 0:01:29.8]}
22... Rac8 {[%clk 0:02:35.6]} 23. Ne3 {[%clk 0:01:19.6]} 23... Qd7 {[%clk
0:02:26.5]} 24. Nd2 {[%clk 0:01:18.2]} 24... Nc6 {[%clk 0:02:23.8]} 25. Ndc4
{[%clk 0:01:17.5]} 25... Qd8 {[%clk 0:02:20.3]} 26. Qd2 {[%clk 0:01:16.3]} 26...
Ne7 {[%clk 0:02:18.5]} 27. a5 {[%clk 0:01:08]} 27... b5 {[%clk 0:02:16]} 28. Nb6
{[%clk 0:01:08.4]} 28... Rb8 {[%clk 0:02:14.3]} 29. Ng4 {[%clk 0:01:07.2]} 29...
Nf5 {[%clk 0:02:13.5]} 30. Bb1 {[%clk 0:01:00.2]} 30... h5 {[%clk 0:02:12.5]}
31. Bxf5 {[%clk 0:00:55.5]} 31... exf5 {[%clk 0:02:11.1]} 32. Ne3 {[%clk
0:00:53.7]} 32... Qg5 {[%clk 0:02:06.9]} 33. d5 {[%clk 0:00:44]} 33... Re7
{[%clk 0:01:42.9]} 34. Nf1 {[%clk 0:00:44.5]} 34... Qxd2 {[%clk 0:01:32.3]} 35.
Nxd2 {[%clk 0:00:45.4]} 35... Rbe8 {[%clk 0:01:32.3]} 36. Kf1 {[%clk 0:00:45.6]}
36... Kf8 {[%clk 0:01:23.8]} 37. Rxe7 {[%clk 0:00:45.3]} 37... Rxe7 {[%clk
0:01:24.7]} 38. Re1 {[%clk 0:00:41.7]} 38... b4 {[%clk 0:01:09.8]} 39. cxb4
{[%clk 0:00:34.8]} 39... Bxb2 {[%clk 0:01:04.3]} 40. Rxe7 {[%clk 0:00:30.6]}
40... Kxe7 {[%clk 0:01:03.3]} 41. Nb1 {[%clk 0:00:14.5]} 41... Bd4 {[%clk
0:00:59.1]} 42. Ke2 {[%clk 0:00:12.6]} 42... Kd8 {[%clk 0:00:55.4]} 43. Nd2
{[%clk 0:00:10]} 43... Bc3 {[%clk 0:00:51]} 44. Ndc4 {[%clk 0:00:10.2]} 44...
Bxb4 {[%clk 0:00:49.3]} 45. Kd3 {[%clk 0:00:10.6]} 45... Kc7 {[%clk 0:00:47.2]}
46. f3 {[%clk 0:00:10.8]} 46... Bxa5 {[%clk 0:00:34.6]} 47. Na4 {[%clk
0:00:10.1]} 47... Bb4 {[%clk 0:00:33.7]} 48. Kd4 {[%clk 0:00:09.3]} 48... a5
{[%clk 0:00:28.9]} 49. g4 {[%clk 0:00:07.3]} 49... fxg4 {[%clk 0:00:28.3]} 50.
fxg4 {[%clk 0:00:07.8]} 50... h4 {[%clk 0:00:26.1]} 51. Ne3 {[%clk 0:00:07.1]}
51... Bc8 {[%clk 0:00:23.4]} 52. Ng2 {[%clk 0:00:06.9]} 52... Bxg4 {[%clk
0:00:14.2]} 53. Nxh4 {[%clk 0:00:02.3]} 53... Bxh3 {[%clk 0:00:12.4]} 54. Nf3
{[%clk 0:00:02.6]} 54... Bd7 {[%clk 0:00:12.4]} 55. Nb2 {[%clk 0:00:01.9]} 55...
f6 {[%clk 0:00:11.4]} 0-1

[Event "Late-Titled-Tuesday-Blitz-April-16-2024"]
[Site "Chess.com"]
[Date "2024.04.16"]
[Round "8"]
[White "DenLaz"]
[Black "kleinebeer98"]
[Result "0-1"]
[WhiteElo "3107"]
[BlackElo "2909"]
[TimeControl "180+1"]
[EndTime "15:25:43 PDT"]
[Termination "kleinebeer98 won by resignation"]

1. d4 {[%clk 0:03:00.9]} 1... d5 {[%clk 0:02:59.8]} 2. c4 {[%clk 0:03:01.5]}
2... Nc6 {[%clk 0:03:00.5]} 3. Nf3 {[%clk 0:02:58.4]} 3... Bg4 {[%clk
0:03:00.5]} 4. cxd5 {[%clk 0:02:58.9]} 4... Bxf3 {[%clk 0:03:00.9]} 5. gxf3
{[%clk 0:02:59.2]} 5... Qxd5 {[%clk 0:03:01.5]} 6. e3 {[%clk 0:02:59.5]} 6... e5
{[%clk 0:03:02]} 7. Nc3 {[%clk 0:03:00.1]} 7... Bb4 {[%clk 0:03:02.8]} 8. Bd2
{[%clk 0:03:00.7]} 8... Bxc3 {[%clk 0:03:03.6]} 9. bxc3 {[%clk 0:03:01.6]} 9...
Qd6 {[%clk 0:03:03.1]} 10. Rb1 {[%clk 0:03:00.7]} 10... O-O-O {[%clk 0:03:02.8]}
11. Qb3 {[%clk 0:02:59]} 11... b6 {[%clk 0:03:02.4]} 12. Qxf7 {[%clk 0:02:57.1]}
12... Nge7 {[%clk 0:02:59.6]} 13. Be2 {[%clk 0:02:55]} 13... Kb8 {[%clk
0:02:58.4]} 14. Qc4 {[%clk 0:02:54.2]} 14... Nf5 {[%clk 0:02:51.5]} 15. Bd3
{[%clk 0:02:47.7]} 15... Nh4 {[%clk 0:02:41.5]} 16. Be4 {[%clk 0:02:47.1]} 16...
Ne7 {[%clk 0:02:29.1]} 17. a4 {[%clk 0:02:36.1]} 17... Rhf8 {[%clk 0:02:23.7]}
18. Qa6 {[%clk 0:02:22.9]} 18... Nd5 {[%clk 0:02:14.1]} 19. c4 {[%clk
0:01:47.6]} 19... Nxf3+ {[%clk 0:02:12.2]} 20. Bxf3 {[%clk 0:01:47.1]} 20...
Rxf3 {[%clk 0:02:13.1]} 21. cxd5 {[%clk 0:01:47.6]} 21... exd4 {[%clk
0:02:11.9]} 22. Qe2 {[%clk 0:01:05.7]} 22... Qxd5 {[%clk 0:02:05.6]} 23. e4
{[%clk 0:00:58.4]} 23... Qf7 {[%clk 0:02:04.1]} 24. O-O {[%clk 0:00:41.1]} 24...
d3 {[%clk 0:02:00.2]} 25. Qe1 {[%clk 0:00:41.6]} 25... Rd6 {[%clk 0:01:57.3]}
26. Kh1 {[%clk 0:00:42.1]} 26... Rdf6 {[%clk 0:01:02.8]} 27. Be3 {[%clk
0:00:14.1]} 27... g5 {[%clk 0:00:32.2]} 28. Rg1 {[%clk 0:00:13.1]} 28... h6
{[%clk 0:00:25.8]} 29. Qd2 {[%clk 0:00:11.5]} 29... Rd6 {[%clk 0:00:16.9]} 30.
Rg3 {[%clk 0:00:11.5]} 30... Rxg3 {[%clk 0:00:13.2]} 31. hxg3 {[%clk 0:00:11.6]}
31... Qf3+ {[%clk 0:00:13.8]} 32. Kg1 {[%clk 0:00:12.3]} 32... Qxe4 {[%clk
0:00:14.6]} 33. a5 {[%clk 0:00:12.1]} 33... h5 {[%clk 0:00:13.2]} 34. axb6
{[%clk 0:00:12.4]} 34... axb6 {[%clk 0:00:14.1]} 35. Rb4 {[%clk 0:00:12.4]}
35... Qf3 {[%clk 0:00:10.4]} 36. Bxg5 {[%clk 0:00:12.9]} 36... Rc6 {[%clk
0:00:07.6]} 37. Be3 {[%clk 0:00:11.7]} 37... Rc2 {[%clk 0:00:08.3]} 38. Qe1
{[%clk 0:00:09.8]} 38... Re2 {[%clk 0:00:07.9]} 39. Qf1 {[%clk 0:00:07.2]} 39...
d2 {[%clk 0:00:06.9]} 40. Rf4 {[%clk 0:00:07.8]} 40... Re1 {[%clk 0:00:05.8]}
41. Bxd2 {[%clk 0:00:06.9]} 41... Rxf1+ {[%clk 0:00:05.1]} 42. Kxf1 {[%clk
0:00:07.8]} 42... Qd3+ {[%clk 0:00:04.7]} 43. Ke1 {[%clk 0:00:07.9]} 43... b5
{[%clk 0:00:03.8]} 44. Be3 {[%clk 0:00:07.9]} 44... Kc8 {[%clk 0:00:03.1]} 45.
Rd4 {[%clk 0:00:08.4]} 45... Qc3+ {[%clk 0:00:03.4]} 46. Ke2 {[%clk 0:00:08.7]}
46... c5 {[%clk 0:00:03.8]} 47. Rh4 {[%clk 0:00:07.5]} 47... c4 {[%clk
0:00:02.7]} 48. Rxh5 {[%clk 0:00:07.4]} 48... Qd3+ {[%clk 0:00:02.7]} 49. Ke1
{[%clk 0:00:07.6]} 49... Qb1+ {[%clk 0:00:03.1]} 50. Ke2 {[%clk 0:00:08]} 50...
Qc2+ {[%clk 0:00:03.8]} 51. Ke1 {[%clk 0:00:07.5]} 51... b4 {[%clk 0:00:04.2]}
52. Rc5+ {[%clk 0:00:05.2]} 52... Kd7 {[%clk 0:00:04.4]} 53. g4 {[%clk
0:00:05.6]} 53... b3 {[%clk 0:00:04.7]} 54. Bd4 {[%clk 0:00:05.3]} 54... Qe4+
{[%clk 0:00:03.6]} 55. Be3 {[%clk 0:00:05.5]} 55... b2 {[%clk 0:00:04.3]} 0-1

[Event "Late-Titled-Tuesday-Blitz-April-16-2024"]
[Site "Chess.com"]
[Date "2024.04.16"]
[Round "8"]
[White "DanielDardha2005"]
[Black "LuckIsMySkill"]
[Result "1/2-1/2"]
[WhiteElo "2866"]
[BlackElo "2694"]
[TimeControl "180+1"]
[EndTime "15:25:46 PDT"]
[Termination "Game drawn by repetition"]

1. d4 {[%clk 0:02:58.8]} 1... b5 {[%clk 0:02:58.8]} 2. e4 {[%clk 0:02:56.5]}
2... Bb7 {[%clk 0:02:58.8]} 3. Bxb5 {[%clk 0:02:54.2]} 3... Bxe4 {[%clk
0:02:58.7]} 4. Nf3 {[%clk 0:02:54.2]} 4... Nf6 {[%clk 0:02:59.3]} 5. Nc3 {[%clk
0:02:52.7]} 5... Bb7 {[%clk 0:02:55.7]} 6. O-O {[%clk 0:02:50.9]} 6... e6 {[%clk
0:02:55.4]} 7. Re1 {[%clk 0:02:50.4]} 7... Be7 {[%clk 0:02:55.4]} 8. Bg5 {[%clk
0:02:43.3]} 8... O-O {[%clk 0:02:55.3]} 9. Bd3 {[%clk 0:02:42.8]} 9... d6 {[%clk
0:02:53.4]} 10. Na4 {[%clk 0:02:30.3]} 10... Nbd7 {[%clk 0:02:50.5]} 11. c4
{[%clk 0:02:29.9]} 11... h6 {[%clk 0:02:34.2]} 12. Bh4 {[%clk 0:02:26.8]} 12...
Nh5 {[%clk 0:02:33.7]} 13. Bxe7 {[%clk 0:02:25.6]} 13... Qxe7 {[%clk 0:02:34.6]}
14. Nc3 {[%clk 0:02:25]} 14... Rab8 {[%clk 0:02:29.7]} 15. b3 {[%clk 0:02:18.7]}
15... Nf4 {[%clk 0:02:16.1]} 16. Bf1 {[%clk 0:01:57]} 16... e5 {[%clk
0:02:03.1]} 17. g3 {[%clk 0:01:51]} 17... Ne6 {[%clk 0:01:54.8]} 18. dxe5 {[%clk
0:01:38.9]} 18... Nxe5 {[%clk 0:01:50.1]} 19. Nxe5 {[%clk 0:01:37.1]} 19... dxe5
{[%clk 0:01:51]} 20. Bg2 {[%clk 0:01:28.5]} 20... Rfd8 {[%clk 0:01:43.8]} 21.
Qe2 {[%clk 0:01:24.5]} 21... Bxg2 {[%clk 0:01:41.8]} 22. Kxg2 {[%clk 0:01:25.4]}
22... f6 {[%clk 0:01:37.4]} 23. Rad1 {[%clk 0:01:22]} 23... Rxd1 {[%clk
0:01:30.3]} 24. Rxd1 {[%clk 0:01:20.6]} 24... Rd8 {[%clk 0:01:30.9]} 25. Rxd8+
{[%clk 0:01:06.2]} 25... Qxd8 {[%clk 0:01:31.8]} 26. h4 {[%clk 0:01:02.1]} 26...
Qd4 {[%clk 0:01:21.3]} 27. Nd5 {[%clk 0:00:54.1]} 27... Kf7 {[%clk 0:01:16.7]}
28. Qh5+ {[%clk 0:00:44]} 28... g6 {[%clk 0:01:00.7]} 29. Qxh6 {[%clk
0:00:35.9]} 29... Qe4+ {[%clk 0:01:00.8]} 30. Kh2 {[%clk 0:00:30.9]} 30... Qe2
{[%clk 0:00:54.7]} 31. Qe3 {[%clk 0:00:22.6]} 31... Qxa2 {[%clk 0:00:54]} 32.
Qf3 {[%clk 0:00:21.2]} 32... f5 {[%clk 0:00:50.5]} 33. Qe3 {[%clk 0:00:21.1]}
33... c6 {[%clk 0:00:36.7]} 34. Nb4 {[%clk 0:00:20.2]} 34... Qb1 {[%clk
0:00:14.7]} 35. Nxc6 {[%clk 0:00:14.4]} 35... e4 {[%clk 0:00:12.1]} 36. Qxa7+
{[%clk 0:00:13.5]} 36... Kg8 {[%clk 0:00:10.5]} 37. Ne7+ {[%clk 0:00:11.9]}
37... Kf7 {[%clk 0:00:06.1]} 38. Nxf5+ {[%clk 0:00:11.9]} 38... Kf6 {[%clk
0:00:06.5]} 39. Ne3 {[%clk 0:00:12.2]} 39... Qxb3 {[%clk 0:00:06.6]} 40. Ng4+
{[%clk 0:00:08.9]} 40... Kf5 {[%clk 0:00:06.8]} 41. Qf7+ {[%clk 0:00:09.7]}
41... Kxg4 {[%clk 0:00:06.3]} 42. Qxe6+ {[%clk 0:00:06.7]} 42... Kf3 {[%clk
0:00:06.6]} 43. Qf7+ {[%clk 0:00:05.2]} 43... Ke2 {[%clk 0:00:06.3]} 44. Qf4
{[%clk 0:00:03.9]} 44... Qxc4 {[%clk 0:00:05.5]} 45. Kg2 {[%clk 0:00:03.6]}
45... Qd3 {[%clk 0:00:04.9]} 46. Qg4+ {[%clk 0:00:03.3]} 46... Ke1 {[%clk
0:00:04.8]} 47. Qxg6 {[%clk 0:00:01.3]} 47... Qf1+ {[%clk 0:00:04.1]} 48. Kh2
{[%clk 0:00:01.9]} 48... Qxf2+ {[%clk 0:00:04.6]} 49. Kh3 {[%clk 0:00:02.6]}
49... Qf1+ {[%clk 0:00:05.2]} 50. Kh2 {[%clk 0:00:02.7]} 50... Qf2+ {[%clk
0:00:05.5]} 51. Kh3 {[%clk 0:00:03.4]} 51... Qf1+ {[%clk 0:00:05.9]} 52. Kg4
{[%clk 0:00:02.1]} 52... Qf3+ {[%clk 0:00:06.6]} 53. Kh3 {[%clk 0:00:02.6]}
53... Qh1+ {[%clk 0:00:06.4]} 54. Kg4 {[%clk 0:00:02.7]} 54... Qf3+ {[%clk
0:00:07.1]} 55. Kh3 {[%clk 0:00:01.8]} 55... Qh1+ {[%clk 0:00:07]} 56. Kg4
{[%clk 0:00:01.8]} 56... Qf3+ {[%clk 0:00:07.5]} 1/2-1/2